BODY,BODY NAME,DATE,TRANSACTION NUMBER, AMOUNT ,SUPPLIER NAME,SUPPLIER ID,EXPENSE AREA,EXPENSE TYPE,EXPENSE CODE
http://statistics.data.gov.uk/id/local-authority/12UE,Huntingdonshire District Council,20/09/2012,112342,2808,Elephant & Castle Freehouse & Motel,CR401969,Accommodation For Homeless,Bed & Breakfast Payment,818
http://statistics.data.gov.uk/id/local-authority/12UE,Huntingdonshire District Council,06/09/2012,111547,2754,Elephant & Castle Freehouse & Motel,CR401969,Accommodation For Homeless,Bed & Breakfast Payment,818
http://statistics.data.gov.uk/id/local-authority/12UE,Huntingdonshire District Council,13/09/2012,111867,2646,Elephant & Castle Freehouse & Motel,CR401969,Accommodation For Homeless,Bed & Breakfast Payment,818
http://statistics.data.gov.uk/id/local-authority/12UE,Huntingdonshire District Council,27/09/2012,112780,2322,Elephant & Castle Freehouse & Motel,CR401969,Accommodation For Homeless,Bed & Breakfast Payment,818
http://statistics.data.gov.uk/id/local-authority/12UE,Huntingdonshire District Council,06/09/2012,110297,974.14,James Andrews Recruitment,CR453753,Accommodation For Homeless,Bed & Breakfast Payment,818
http://statistics.data.gov.uk/id/local-authority/12UE,Huntingdonshire District Council,13/09/2012,110953,770,Jaz Yorks Ltd,CR160753,Accommodation For Homeless,Bed & Breakfast Payment,818
http://statistics.data.gov.uk/id/local-authority/12UE,Huntingdonshire District Council,13/09/2012,110954,770,Jaz Yorks Ltd,CR160753,Accommodation For Homeless,Bed & Breakfast Payment,818
http://statistics.data.gov.uk/id/local-authority/12UE,Huntingdonshire District Council,06/09/2012,110955,770,Jaz Yorks Ltd,CR160753,Accommodation For Homeless,Bed & Breakfast Payment,818
http://statistics.data.gov.uk/id/local-authority/12UE,Huntingdonshire District Council,27/09/2012,539775,490,The Black Bull,CR415353,Accommodation For Homeless,Bed & Breakfast Payment,818
http://statistics.data.gov.uk/id/local-authority/12UE,Huntingdonshire District Council,13/09/2012,110354,630,The Station Hotel,CR453752,Accommodation For Homeless,Bed & Breakfast Payment,818
http://statistics.data.gov.uk/id/local-authority/12UE,Huntingdonshire District Council,13/09/2012,110652,630,The Station Hotel,CR453752,Accommodation For Homeless,Bed & Breakfast Payment,818
http://statistics.data.gov.uk/id/local-authority/12UE,Huntingdonshire District Council,06/09/2012,111548,630,The Station Hotel,CR453752,Accommodation For Homeless,Bed & Breakfast Payment,818
http://statistics.data.gov.uk/id/local-authority/12UE,Huntingdonshire District Council,13/09/2012,111055,1571.44,Opus International Consultants,CR479831,Building Control Applications,Consultants,711
http://statistics.data.gov.uk/id/local-authority/12UE,Huntingdonshire District Council,27/09/2012,112603,1173.36,Opus International Consultants,CR479831,Building Control Applications,Consultants,711
http://statistics.data.gov.uk/id/local-authority/12UE,Huntingdonshire District Council,27/09/2012,540029,396,St Edmundsbury Borough Council,CR407131,Building Control Other,Subcontractors,777
http://statistics.data.gov.uk/id/local-authority/12UE,Huntingdonshire District Council,06/09/2012,110087,606,G Ferrara Ltd,CR478949,Bus Shelters,Building Cleaning Internal,440
http://statistics.data.gov.uk/id/local-authority/12UE,Huntingdonshire District Council,06/09/2012,110576,1038,Beebys Limited,CR415822,Bus Stations,Building Cleaning Internal,440
http://statistics.data.gov.uk/id/local-authority/12UE,Huntingdonshire District Council,20/09/2012,112218,900,Endurance Estates St Ives Ltd,CR482682,Business & Enterprise Support,Entertainments Inc Cable Tv,744
http://statistics.data.gov.uk/id/local-authority/12UE,Huntingdonshire District Council,20/09/2012,108823,15300,Virgin Media,CR412057,Call Centre,I T Line Rental,248
http://statistics.data.gov.uk/id/local-authority/12UE,Huntingdonshire District Council,20/09/2012,112238,-5086.03,Virgin Media,CR412057,Call Centre,I T Line Rental,248
http://statistics.data.gov.uk/id/local-authority/12UE,Huntingdonshire District Council,06/09/2012,110199,5080.84,Adc East Anglia Limited,CR410308,Car Park Assets,Sitework,359
http://statistics.data.gov.uk/id/local-authority/12UE,Huntingdonshire District Council,27/09/2012,111807,1661.05,Oastlodge Ltd,CR479114,Car Park Management,Rent,410
http://statistics.data.gov.uk/id/local-authority/12UE,Huntingdonshire District Council,06/09/2012,111398,698.25,Swalec,CR407130,Car Park Management,Electricity,420
http://statistics.data.gov.uk/id/local-authority/12UE,Huntingdonshire District Council,27/09/2012,112007,3908.89,Cale Briparc Ltd,CR401137,Car Park Management,Car Park Machines,522
http://statistics.data.gov.uk/id/local-authority/12UE,Huntingdonshire District Council,06/09/2012,110189,4690.26,G4s Cashservices Uk Ltd,CR407133,Car Park Management,Cash Collection,702
http://statistics.data.gov.uk/id/local-authority/12UE,Huntingdonshire District Council,27/09/2012,112311,4690.26,G4s Cashservices Uk Ltd,CR407133,Car Park Management,Cash Collection,702
http://statistics.data.gov.uk/id/local-authority/12UE,Huntingdonshire District Council,13/09/2012,110397,1653.6,Aea Training,CR40222,Central & Democratic Serv Mu,Training - Professional,130
http://statistics.data.gov.uk/id/local-authority/12UE,Huntingdonshire District Council,06/09/2012,111389,424,Jlt Speciality Ltd,CR480345,Central & Democratic Serv Mu,Vehicle Operating Lease,601
http://statistics.data.gov.uk/id/local-authority/12UE,Huntingdonshire District Council,11/09/2012,539534,260,Hmcts,CR452711,Central & Democratic Serv Mu,Legal Fees,729
http://statistics.data.gov.uk/id/local-authority/12UE,Huntingdonshire District Council,03/09/2012,538977,200,Hmcts,CR452711,Central & Democratic Serv Mu,Legal Fees,729
http://statistics.data.gov.uk/id/local-authority/12UE,Huntingdonshire District Council,28/09/2012,540368,130,Hmcts,CR452711,Central & Democratic Serv Mu,Legal Fees,729
http://statistics.data.gov.uk/id/local-authority/12UE,Huntingdonshire District Council,28/09/2012,540367,100,Hmcts,CR030090,Central & Democratic Serv Mu,Legal Fees,729
http://statistics.data.gov.uk/id/local-authority/12UE,Huntingdonshire District Council,03/09/2012,538976,100,Hmcts,CR030090,Central & Democratic Serv Mu,Legal Fees,729
http://statistics.data.gov.uk/id/local-authority/12UE,Huntingdonshire District Council,20/09/2012,110713,6984.6,Sharpe Pritchard,CR480887,Chief Executive & Comt,Consultants,711
http://statistics.data.gov.uk/id/local-authority/12UE,Huntingdonshire District Council,27/09/2012,112266,3184.2,Sharpe Pritchard,CR480887,Chief Executive & Comt,Consultants,711
http://statistics.data.gov.uk/id/local-authority/12UE,Huntingdonshire District Council,20/09/2012,112268,1674,Cipfa Business Limited,CR480088,Chief Executive & Comt,Corporate Subscriptions,754
http://statistics.data.gov.uk/id/local-authority/12UE,Huntingdonshire District Council,27/09/2012,112272,900,Jba Construction & Management Services,CR416716,Community Iniatives Capital,Consultants,711
http://statistics.data.gov.uk/id/local-authority/12UE,Huntingdonshire District Council,06/09/2012,111523,3600,Shared Service Architects,CR481087,Community Projects,Training - Professional,130
http://statistics.data.gov.uk/id/local-authority/12UE,Huntingdonshire District Council,06/09/2012,111524,3600,Shared Service Architects,CR481087,Community Projects,Training - Professional,130
http://statistics.data.gov.uk/id/local-authority/12UE,Huntingdonshire District Council,13/09/2012,110401,3457.8,Cambridgeshire County Council,CR017440,Community Projects,Promotional Items,569
http://statistics.data.gov.uk/id/local-authority/12UE,Huntingdonshire District Council,06/09/2012,111389,848,Jlt Speciality Ltd,CR480345,Community Services M Us,Vehicle Operating Lease,601
http://statistics.data.gov.uk/id/local-authority/12UE,Huntingdonshire District Council,27/09/2012,112877,7848,Modern Mindset Ltd,CR482623,Corporate Committees,Software,206
http://statistics.data.gov.uk/id/local-authority/12UE,Huntingdonshire District Council,27/09/2012,111881,7500,Barker Storey Matthews,CR400788,Corporate Office,Property Management,781
http://statistics.data.gov.uk/id/local-authority/12UE,Huntingdonshire District Council,27/09/2012,111584,3900,Northgate Information Solutions Uk Ltd,CR415749,Council Tax,Software,206
http://statistics.data.gov.uk/id/local-authority/12UE,Huntingdonshire District Council,06/09/2012,110143,501.03,Newlyn Plc,CR409114,Council Tax,Bailiffs,703
http://statistics.data.gov.uk/id/local-authority/12UE,Huntingdonshire District Council,20/09/2012,111318,500.19,Newlyn Plc,CR409114,Council Tax,Bailiffs,703
http://statistics.data.gov.uk/id/local-authority/12UE,Huntingdonshire District Council,27/09/2012,112360,1074,Arthur Ibbett Ltd,CR000430,Countryside Management,Equipment Purchases,500
http://statistics.data.gov.uk/id/local-authority/12UE,Huntingdonshire District Council,27/09/2012,111802,1645.48,Arthur Ibbett Ltd,CR000430,Countryside Management,Equipment Maintenance,511
http://statistics.data.gov.uk/id/local-authority/12UE,Huntingdonshire District Council,13/09/2012,110903,52.06,King Bros,CR411339,Countryside Management,Promotions And Exhibitions,743
http://statistics.data.gov.uk/id/local-authority/12UE,Huntingdonshire District Council,06/09/2012,111390,593.24,Zurich Municipal,CR477397,Customer Service Centres,Ins (Service Related),260
http://statistics.data.gov.uk/id/local-authority/12UE,Huntingdonshire District Council,27/09/2012,112313,2724.13,White Commercial Surveyors Ltd,CR412242,Customer Service Centres,Rent,410
http://statistics.data.gov.uk/id/local-authority/12UE,Huntingdonshire District Council,27/09/2012,112310,1488.16,G4s Cashservices Uk Ltd,CR407133,Customer Service Centres,Cash Collection,702
http://statistics.data.gov.uk/id/local-authority/12UE,Huntingdonshire District Council,13/09/2012,110638,600,Sabell & Co (B'Ham) Ltd,CR000712,Dc Application Processing,Stationery,225
http://statistics.data.gov.uk/id/local-authority/12UE,Huntingdonshire District Council,27/09/2012,112884,3210,Alison Farmer Associates,CR411072,Dc Application Processing,Consultants,711
http://statistics.data.gov.uk/id/local-authority/12UE,Huntingdonshire District Council,20/09/2012,111091,1228.8,Surrey Envelopes,CR482428,Document Centre,Envelopes,224
http://statistics.data.gov.uk/id/local-authority/12UE,Huntingdonshire District Council,06/09/2012,110722,36.44,Royal Mail,CR027083,Document Centre,Postage,231
http://statistics.data.gov.uk/id/local-authority/12UE,Huntingdonshire District Council,13/09/2012,111099,1421.69,Royal Mail,CR027083,Document Centre,Postage,231
http://statistics.data.gov.uk/id/local-authority/12UE,Huntingdonshire District Council,27/09/2012,111914,1347.98,Royal Mail,CR027083,Document Centre,Postage,231
http://statistics.data.gov.uk/id/local-authority/12UE,Huntingdonshire District Council,27/09/2012,111876,968.95,T N T Post London Ltd,CR479965,Document Centre,Postage,231
http://statistics.data.gov.uk/id/local-authority/12UE,Huntingdonshire District Council,13/09/2012,111097,844.8,T N T Post London Ltd,CR479965,Document Centre,Postage,231
http://statistics.data.gov.uk/id/local-authority/12UE,Huntingdonshire District Council,06/09/2012,110721,998.36,T N T Post London Ltd,CR479965,Document Centre,Postage,231
http://statistics.data.gov.uk/id/local-authority/12UE,Huntingdonshire District Council,20/09/2012,111096,1344.17,T N T Post London Ltd,CR479965,Document Centre,Postage,231
http://statistics.data.gov.uk/id/local-authority/12UE,Huntingdonshire District Council,06/09/2012,110162,1870.93,Konica Minolta Business Solutions East Ltd,CR478866,Document Centre,Equipment Maintenance,511
http://statistics.data.gov.uk/id/local-authority/12UE,Huntingdonshire District Council,27/09/2012,111920,5117.26,Oce Uk Limited,CR409013,Document Centre,Equipment Maintenance,511
http://statistics.data.gov.uk/id/local-authority/12UE,Huntingdonshire District Council,27/09/2012,111917,3170.2,Oce Uk Limited,CR409013,Document Centre,Equipment Maintenance,511
http://statistics.data.gov.uk/id/local-authority/12UE,Huntingdonshire District Council,27/09/2012,111915,1035.17,Oce Uk Limited,CR409013,Document Centre,Equipment Maintenance,511
http://statistics.data.gov.uk/id/local-authority/12UE,Huntingdonshire District Council,20/09/2012,539742,23.76,Sapphire Saw Service,CR000716,Document Centre,Equipment Maintenance,511
http://statistics.data.gov.uk/id/local-authority/12UE,Huntingdonshire District Council,27/09/2012,111861,600.48,Xerox Office Supplies,CR481184,Document Centre,Paper,562
http://statistics.data.gov.uk/id/local-authority/12UE,Huntingdonshire District Council,13/09/2012,111333,1098,Clanpress King'S Lynn Ltd,CR413516,Document Centre,Subcontractors,777
http://statistics.data.gov.uk/id/local-authority/12UE,Huntingdonshire District Council,27/09/2012,111980,4739.58,Staffline Group,CR416827,Domestic Refuse,Hired Staff,100
http://statistics.data.gov.uk/id/local-authority/12UE,Huntingdonshire District Council,13/09/2012,111780,4435.74,Staffline Group,CR416827,Domestic Refuse,Hired Staff,100
http://statistics.data.gov.uk/id/local-authority/12UE,Huntingdonshire District Council,20/09/2012,111794,4227.74,Staffline Group,CR416827,Domestic Refuse,Hired Staff,100
http://statistics.data.gov.uk/id/local-authority/12UE,Huntingdonshire District Council,06/09/2012,110684,3559.52,Staffline Group,CR416827,Domestic Refuse,Hired Staff,100
http://statistics.data.gov.uk/id/local-authority/12UE,Huntingdonshire District Council,20/09/2012,111793,2953.26,Staffline Group,CR416827,Domestic Refuse,Hired Staff,100
http://statistics.data.gov.uk/id/local-authority/12UE,Huntingdonshire District Council,13/09/2012,111782,2830.48,Staffline Group,CR416827,Domestic Refuse,Hired Staff,100
http://statistics.data.gov.uk/id/local-authority/12UE,Huntingdonshire District Council,27/09/2012,111981,2818.22,Staffline Group,CR416827,Domestic Refuse,Hired Staff,100
http://statistics.data.gov.uk/id/local-authority/12UE,Huntingdonshire District Council,06/09/2012,110688,1854.47,Staffline Group,CR416827,Domestic Refuse,Hired Staff,100
http://statistics.data.gov.uk/id/local-authority/12UE,Huntingdonshire District Council,27/09/2012,111950,8970.16,Gelpack Excelsior Limited,CR002966,Domestic Refuse,Refuse Sacks,552
http://statistics.data.gov.uk/id/local-authority/12UE,Huntingdonshire District Council,27/09/2012,112872,4692,Riverside Truck Rental Ltd,CR411499,Domestic Refuse,Vehicle Hire,607
http://statistics.data.gov.uk/id/local-authority/12UE,Huntingdonshire District Council,27/09/2012,112873,-913.54,Riverside Truck Rental Ltd,CR411499,Domestic Refuse,Vehicle Hire,607
http://statistics.data.gov.uk/id/local-authority/12UE,Huntingdonshire District Council,13/09/2012,110923,1436.48,Dennis Eagle Ltd,CR000200,Domestic Refuse,Vehicle Maintenance,619
http://statistics.data.gov.uk/id/local-authority/12UE,Huntingdonshire District Council,20/09/2012,110920,1200.17,Dennis Eagle Ltd,CR000200,Domestic Refuse,Vehicle Maintenance,619
http://statistics.data.gov.uk/id/local-authority/12UE,Huntingdonshire District Council,13/09/2012,111019,2142.89,M & N Vehicle Services,CR480661,Domestic Refuse,Vehicle Maintenance,619
http://statistics.data.gov.uk/id/local-authority/12UE,Huntingdonshire District Council,27/09/2012,111907,1472.32,M & N Vehicle Services,CR480661,Domestic Refuse,Vehicle Maintenance,619
http://statistics.data.gov.uk/id/local-authority/12UE,Huntingdonshire District Council,06/09/2012,110671,577.49,Wfl Enterprises Ltd,CR455202,Domestic Refuse,Vehicle Maintenance,619
http://statistics.data.gov.uk/id/local-authority/12UE,Huntingdonshire District Council,13/09/2012,111019,123,M & N Vehicle Services,CR480661,Domestic Refuse,Vehicle Mot,622
http://statistics.data.gov.uk/id/local-authority/12UE,Huntingdonshire District Council,27/09/2012,111907,123,M & N Vehicle Services,CR480661,Domestic Refuse,Vehicle Mot,622
http://statistics.data.gov.uk/id/local-authority/12UE,Huntingdonshire District Council,06/09/2012,110714,7231.03,Terberg Matec Uk Ltd,CR402183,Domestic Refuse,Vehicle Refurbishment,624
http://statistics.data.gov.uk/id/local-authority/12UE,Huntingdonshire District Council,06/09/2012,110289,898.32,A C Commercials,CR000141,Domestic Refuse,Vehicle Parts & Fittings,625
http://statistics.data.gov.uk/id/local-authority/12UE,Huntingdonshire District Council,13/09/2012,111935,928.2,Capital Seating,CR480016,Domestic Refuse,Vehicle Parts & Fittings,625
http://statistics.data.gov.uk/id/local-authority/12UE,Huntingdonshire District Council,06/09/2012,110589,2975.18,Cummins Uk,CR480395,Domestic Refuse,Vehicle Parts & Fittings,625
http://statistics.data.gov.uk/id/local-authority/12UE,Huntingdonshire District Council,27/09/2012,111902,649.98,Dennis Eagle Ltd,CR000200,Domestic Refuse,Vehicle Parts & Fittings,625
http://statistics.data.gov.uk/id/local-authority/12UE,Huntingdonshire District Council,27/09/2012,112414,4341.39,Bandvulc Tyres Ltd,CR406810,Domestic Refuse,Tyres,630
http://statistics.data.gov.uk/id/local-authority/12UE,Huntingdonshire District Council,06/09/2012,110334,713.72,Dennis Eagle Ltd,CR000200,Domestic Refuse,Tyres,630
http://statistics.data.gov.uk/id/local-authority/12UE,Huntingdonshire District Council,13/09/2012,110594,234,Ians Tyre And Exhaust Centre,CR405836,Domestic Refuse,Tyres,630
http://statistics.data.gov.uk/id/local-authority/12UE,Huntingdonshire District Council,27/09/2012,111428,1392.48,Kershaw Mechanical Services Ltd,CR480268,E F H And Depots,Gen Building Mtce - Responsive,303
http://statistics.data.gov.uk/id/local-authority/12UE,Huntingdonshire District Council,20/09/2012,111089,3574.67,Kershaw Mechanical Services Ltd,CR480268,E F H And Depots,Electrical Testing,383
http://statistics.data.gov.uk/id/local-authority/12UE,Huntingdonshire District Council,27/09/2012,112616,2603.02,E-On Energy,CR416430,E F H And Depots,Electricity,420
http://statistics.data.gov.uk/id/local-authority/12UE,Huntingdonshire District Council,13/09/2012,111351,1356.6,Ecocleen Services Limited,CR406985,E F H And Depots,Building Cleaning Internal,440
http://statistics.data.gov.uk/id/local-authority/12UE,Huntingdonshire District Council,27/09/2012,111876,326.08,T N T Post London Ltd,CR479965,Eh Health & Safety,Postage,231
http://statistics.data.gov.uk/id/local-authority/12UE,Huntingdonshire District Council,13/09/2012,111100,2097.16,Royal Mail,CR027083,Elections,Postage,231
http://statistics.data.gov.uk/id/local-authority/12UE,Huntingdonshire District Council,06/09/2012,110722,2003.61,Royal Mail,CR027083,Elections,Postage,231
http://statistics.data.gov.uk/id/local-authority/12UE,Huntingdonshire District Council,27/09/2012,111876,2.8,T N T Post London Ltd,CR479965,Elections,Postage,231
http://statistics.data.gov.uk/id/local-authority/12UE,Huntingdonshire District Council,13/09/2012,111097,20.63,T N T Post London Ltd,CR479965,Elections,Postage,231
http://statistics.data.gov.uk/id/local-authority/12UE,Huntingdonshire District Council,20/09/2012,111096,44.41,T N T Post London Ltd,CR479965,Elections,Postage,231
http://statistics.data.gov.uk/id/local-authority/12UE,Huntingdonshire District Council,20/09/2012,539746,192,Huntingdon Methodist Church,CR415461,Elections,Hire Of Rooms,411
http://statistics.data.gov.uk/id/local-authority/12UE,Huntingdonshire District Council,20/09/2012,539748,150,Huntingdon Regional College,CR482354,Elections,Hire Of Rooms,411
http://statistics.data.gov.uk/id/local-authority/12UE,Huntingdonshire District Council,27/09/2012,112775,741.6,Marney Hall Consultancy Limited,CR480342,Energy Efficiency,Sitework,359
http://statistics.data.gov.uk/id/local-authority/12UE,Huntingdonshire District Council,06/09/2012,111389,1696,Jlt Speciality Ltd,CR480345,Engineering & Arch M Us,Vehicle Operating Lease,601
http://statistics.data.gov.uk/id/local-authority/12UE,Huntingdonshire District Council,27/09/2012,111737,990,K & M Lighting Services Ltd,CR455166,Environment Equipment Capital,Sitework,359
http://statistics.data.gov.uk/id/local-authority/12UE,Huntingdonshire District Council,20/09/2012,111314,4389.6,Harvard Engineering Plc,CR455227,Environment Equipment Capital,Equipment Purchases,500
http://statistics.data.gov.uk/id/local-authority/12UE,Huntingdonshire District Council,27/09/2012,539997,26.16,Huntingdon Town Council,CR002471,Environmental Health M Us,Hire Of Rooms,411
http://statistics.data.gov.uk/id/local-authority/12UE,Huntingdonshire District Council,20/09/2012,112299,4683.89,Deloitte,CR416667,Estates Properties Capital,Consultants,711
http://statistics.data.gov.uk/id/local-authority/12UE,Huntingdonshire District Council,20/09/2012,112301,2711.09,Deloitte,CR416667,Estates Properties Capital,Consultants,711
http://statistics.data.gov.uk/id/local-authority/12UE,Huntingdonshire District Council,20/09/2012,110939,58080,Pricewaterhouse Coopers Llp,CR487210,External Audit,Audit Fees,701
http://statistics.data.gov.uk/id/local-authority/12UE,Huntingdonshire District Council,20/09/2012,110940,12000,Pricewaterhouse Coopers Llp,CR487210,External Audit,Audit Fees,701
http://statistics.data.gov.uk/id/local-authority/12UE,Huntingdonshire District Council,20/09/2012,110938,6000,Pricewaterhouse Coopers Llp,CR487210,External Audit,Audit Fees,701
http://statistics.data.gov.uk/id/local-authority/12UE,Huntingdonshire District Council,06/09/2012,111390,-5300,Zurich Municipal,CR477397,Financial Services,Consultants,711
http://statistics.data.gov.uk/id/local-authority/12UE,Huntingdonshire District Council,06/09/2012,110614,1200,Auditware Systems Limited,CR40190,Financial Services Mus,Software,206
http://statistics.data.gov.uk/id/local-authority/12UE,Huntingdonshire District Council,06/09/2012,111389,424,Jlt Speciality Ltd,CR480345,Financial Services Mus,Vehicle Operating Lease,601
http://statistics.data.gov.uk/id/local-authority/12UE,Huntingdonshire District Council,13/09/2012,110346,526.74,Elliot Engineering,CR027402,Fleet Management,Equipment Purchases,500
http://statistics.data.gov.uk/id/local-authority/12UE,Huntingdonshire District Council,27/09/2012,112416,589.1,Fenland Factors,CR024722,Fleet Management,Equipment Purchases,500
http://statistics.data.gov.uk/id/local-authority/12UE,Huntingdonshire District Council,06/09/2012,110650,549.84,Interflon,CR482679,Fleet Management,Equipment Purchases,500
http://statistics.data.gov.uk/id/local-authority/12UE,Huntingdonshire District Council,27/09/2012,111878,900,Masternaut,CR416550,Fleet Management,Equipment Maintenance,511
http://statistics.data.gov.uk/id/local-authority/12UE,Huntingdonshire District Council,06/09/2012,111389,1696,Jlt Speciality Ltd,CR480345,Fleet Management,Vehicle Operating Lease,601
http://statistics.data.gov.uk/id/local-authority/12UE,Huntingdonshire District Council,27/09/2012,111729,936.36,Days Contract Hire,CR417030,Fleet Management,Vehicle Finance Leases,602
http://statistics.data.gov.uk/id/local-authority/12UE,Huntingdonshire District Council,27/09/2012,111729,93.36,Days Contract Hire,CR417030,Fleet Management,Vehicle Warranty,612
http://statistics.data.gov.uk/id/local-authority/12UE,Huntingdonshire District Council,13/09/2012,110670,651,Terberg Matec Uk Ltd,CR402183,Fleet Management,Vehicle Maintenance,619
http://statistics.data.gov.uk/id/local-authority/12UE,Huntingdonshire District Council,27/09/2012,111906,554.35,Dennis Eagle Ltd,CR000200,Fleet Management,Vehicle Parts & Fittings,625
http://statistics.data.gov.uk/id/local-authority/12UE,Huntingdonshire District Council,27/09/2012,111919,1598.01,Ernest Doe & Sons,CR000261,Fleet Management,Vehicle Parts & Fittings,625
http://statistics.data.gov.uk/id/local-authority/12UE,Huntingdonshire District Council,06/09/2012,111578,5100.96,Freedom Lubricants Ltd,CR411569,Fleet Management,Vehicle Parts & Fittings,625
http://statistics.data.gov.uk/id/local-authority/12UE,Huntingdonshire District Council,20/09/2012,110990,768.29,Tecalemit Garage Equipment Co Ltd,CR477683,Fleet Management,Vehicle Parts & Fittings,625
http://statistics.data.gov.uk/id/local-authority/12UE,Huntingdonshire District Council,27/09/2012,111931,1346.3,Terberg Matec Uk Ltd,CR402183,Fleet Management,Vehicle Parts & Fittings,625
http://statistics.data.gov.uk/id/local-authority/12UE,Huntingdonshire District Council,27/09/2012,111876,326.08,T N T Post London Ltd,CR479965,Food Safety,Postage,231
http://statistics.data.gov.uk/id/local-authority/12UE,Huntingdonshire District Council,27/09/2012,112628,7073.12,Computershare Vouchers Ltd,CR412205,General Creditors,Deductions Paid To Third Party,26
http://statistics.data.gov.uk/id/local-authority/12UE,Huntingdonshire District Council,13/09/2012,111783,587.86,Staffline Group,CR416827,Grounds Maintenance (Combined),Hired Staff,100
http://statistics.data.gov.uk/id/local-authority/12UE,Huntingdonshire District Council,20/09/2012,111799,587.86,Staffline Group,CR416827,Grounds Maintenance (Combined),Hired Staff,100
http://statistics.data.gov.uk/id/local-authority/12UE,Huntingdonshire District Council,06/09/2012,110685,508.42,Staffline Group,CR416827,Grounds Maintenance (Combined),Hired Staff,100
http://statistics.data.gov.uk/id/local-authority/12UE,Huntingdonshire District Council,27/09/2012,112307,195.35,Euramka Promotions Ltd,CR001864,Grounds Maintenance (Combined),Petrol,614
http://statistics.data.gov.uk/id/local-authority/12UE,Huntingdonshire District Council,27/09/2012,112880,665.88,Shell Uk Ltd,CR028192,Grounds Maintenance (Combined),Petrol,614
http://statistics.data.gov.uk/id/local-authority/12UE,Huntingdonshire District Council,27/09/2012,112307,2047.44,Euramka Promotions Ltd,CR001864,Grounds Maintenance (Combined),Diesel,615
http://statistics.data.gov.uk/id/local-authority/12UE,Huntingdonshire District Council,27/09/2012,111938,180,Ians Tyre And Exhaust Centre,CR405836,Grounds Maintenance (Combined),Vehicle Parts & Fittings,625
http://statistics.data.gov.uk/id/local-authority/12UE,Huntingdonshire District Council,13/09/2012,110594,510,Ians Tyre And Exhaust Centre,CR405836,Grounds Maintenance (Combined),Tyres,630
http://statistics.data.gov.uk/id/local-authority/12UE,Huntingdonshire District Council,24/09/2012,110383,6971.04,Lightning Recruitment,CR028184,Head Of Imd,Hired Staff,100
http://statistics.data.gov.uk/id/local-authority/12UE,Huntingdonshire District Council,06/09/2012,109687,548.78,Lightning Recruitment,CR028184,Head Of Imd,Hired Staff,100
http://statistics.data.gov.uk/id/local-authority/12UE,Huntingdonshire District Council,27/09/2012,110627,548.78,Lightning Recruitment,CR028184,Head Of Imd,Hired Staff,100
http://statistics.data.gov.uk/id/local-authority/12UE,Huntingdonshire District Council,27/09/2012,111331,548.78,Lightning Recruitment,CR028184,Head Of Imd,Hired Staff,100
http://statistics.data.gov.uk/id/local-authority/12UE,Huntingdonshire District Council,24/09/2012,112650,-6971.04,Lightning Recruitment,CR028184,Head Of Imd,Hired Staff,100
http://statistics.data.gov.uk/id/local-authority/12UE,Huntingdonshire District Council,27/09/2012,112423,4271.25,Edrm Systems Ltd,CR416278,Helpdesk,Hired Staff,100
http://statistics.data.gov.uk/id/local-authority/12UE,Huntingdonshire District Council,13/09/2012,110566,3600,Northgate Information Solutions Uk Ltd,CR028925,Helpdesk,Hired Staff,100
http://statistics.data.gov.uk/id/local-authority/12UE,Huntingdonshire District Council,13/09/2012,110730,2280,Northgate Information Solutions Uk Ltd,CR028925,Helpdesk,Hired Staff,100
http://statistics.data.gov.uk/id/local-authority/12UE,Huntingdonshire District Council,06/09/2012,110203,1320,Premier It Recruitment Ltd,CR454029,Helpdesk,Hired Staff,100
http://statistics.data.gov.uk/id/local-authority/12UE,Huntingdonshire District Council,13/09/2012,110558,1320,Premier It Recruitment Ltd,CR454029,Helpdesk,Hired Staff,100
http://statistics.data.gov.uk/id/local-authority/12UE,Huntingdonshire District Council,20/09/2012,110891,1320,Premier It Recruitment Ltd,CR454029,Helpdesk,Hired Staff,100
http://statistics.data.gov.uk/id/local-authority/12UE,Huntingdonshire District Council,27/09/2012,111312,1320,Premier It Recruitment Ltd,CR454029,Helpdesk,Hired Staff,100
http://statistics.data.gov.uk/id/local-authority/12UE,Huntingdonshire District Council,27/09/2012,111313,6317.29,Caci Limited,CR409683,Helpdesk,Software,206
http://statistics.data.gov.uk/id/local-authority/12UE,Huntingdonshire District Council,13/09/2012,110564,1576.56,Eacs Ltd,CR404499,Helpdesk,Software,206
http://statistics.data.gov.uk/id/local-authority/12UE,Huntingdonshire District Council,06/09/2012,110565,5014.86,Khipu Networks Ltd,CR482348,Helpdesk,Software,206
http://statistics.data.gov.uk/id/local-authority/12UE,Huntingdonshire District Council,13/09/2012,110557,2729.4,Daisy Communications Ltd,CR481089,Helpdesk,I T Line Rental,248
http://statistics.data.gov.uk/id/local-authority/12UE,Huntingdonshire District Council,06/09/2012,110561,1530,Virgin Media,CR412057,Helpdesk,I T Line Rental,248
http://statistics.data.gov.uk/id/local-authority/12UE,Huntingdonshire District Council,06/09/2012,111390,5412.34,Zurich Municipal,CR477397,Helpdesk,Equipment Ins/All Risks,510
http://statistics.data.gov.uk/id/local-authority/12UE,Huntingdonshire District Council,13/09/2012,110731,1629.6,Hp Care Pack Sales,CR478055,Helpdesk,Equipment Maintenance,511
http://statistics.data.gov.uk/id/local-authority/12UE,Huntingdonshire District Council,20/09/2012,112419,4500,Nettitude Limited,CR455281,Helpdesk,Equipment Maintenance,511
http://statistics.data.gov.uk/id/local-authority/12UE,Huntingdonshire District Council,06/09/2012,110295,5340,Kelway (Uk) Ltd,CR004345,Helpdesk,Consultants,711
http://statistics.data.gov.uk/id/local-authority/12UE,Huntingdonshire District Council,20/09/2012,538812,431,Rps Plumbing Services,CR482532,Hinchingbrooke Country Park,Gen Building Mtce - Responsive,303
http://statistics.data.gov.uk/id/local-authority/12UE,Huntingdonshire District Council,06/09/2012,111399,864.88,Swalec,CR407130,Hinchingbrooke Country Park,Electricity,420
http://statistics.data.gov.uk/id/local-authority/12UE,Huntingdonshire District Council,27/09/2012,112357,21.72,Arthur Ibbett Ltd,CR000430,Hinchingbrooke Country Park,Equipment Purchases,500
http://statistics.data.gov.uk/id/local-authority/12UE,Huntingdonshire District Council,20/09/2012,112350,1533.12,Lafarge Aggregates Limited,CR411062,Hinchingbrooke Country Park,Materials,550
http://statistics.data.gov.uk/id/local-authority/12UE,Huntingdonshire District Council,06/09/2012,110279,656.77,King Bros,CR411339,Hinchingbrooke Country Park,Catering Materials,559
http://statistics.data.gov.uk/id/local-authority/12UE,Huntingdonshire District Council,06/09/2012,110277,615.35,King Bros,CR411339,Hinchingbrooke Country Park,Catering Materials,559
http://statistics.data.gov.uk/id/local-authority/12UE,Huntingdonshire District Council,13/09/2012,110903,556.01,King Bros,CR411339,Hinchingbrooke Country Park,Catering Materials,559
http://statistics.data.gov.uk/id/local-authority/12UE,Huntingdonshire District Council,27/09/2012,112337,539.65,King Bros,CR411339,Hinchingbrooke Country Park,Catering Materials,559
http://statistics.data.gov.uk/id/local-authority/12UE,Huntingdonshire District Council,13/09/2012,539111,168.6,Steves Taxis & Private Hire,CR155956,Homelessness Management,Travel Expenses,636
http://statistics.data.gov.uk/id/local-authority/12UE,Huntingdonshire District Council,13/09/2012,111549,672,Alexanders,CR415843,Homelessness Management,Removal/Storage,750
http://statistics.data.gov.uk/id/local-authority/12UE,Huntingdonshire District Council,13/09/2012,111551,648,Alexanders,CR415843,Homelessness Management,Removal/Storage,750
http://statistics.data.gov.uk/id/local-authority/12UE,Huntingdonshire District Council,20/09/2012,111944,648,Alexanders,CR415843,Homelessness Management,Removal/Storage,750
http://statistics.data.gov.uk/id/local-authority/12UE,Huntingdonshire District Council,27/09/2012,112317,510,Britannia Harrison & Rowley Ltd,CR406998,Homelessness Management,Removal/Storage,750
http://statistics.data.gov.uk/id/local-authority/12UE,Huntingdonshire District Council,13/09/2012,110958,921.48,James Andrews Recruitment,CR453753,Housing Management Units,Hired Staff,100
http://statistics.data.gov.uk/id/local-authority/12UE,Huntingdonshire District Council,06/09/2012,111389,424,Jlt Speciality Ltd,CR480345,Housing Management Units,Vehicle Operating Lease,601
http://statistics.data.gov.uk/id/local-authority/12UE,Huntingdonshire District Council,27/09/2012,112435,1137.06,Swalec,CR407130,Housing Services Other,Electricity,420
http://statistics.data.gov.uk/id/local-authority/12UE,Huntingdonshire District Council,27/09/2012,112267,1728,Orion Business School Ltd,CR478153,Human Resources,Training - Other,136
http://statistics.data.gov.uk/id/local-authority/12UE,Huntingdonshire District Council,13/09/2012,110643,2160,Rsa Environmental Health Limited,CR482415,Human Resources,Consultants,711
http://statistics.data.gov.uk/id/local-authority/12UE,Huntingdonshire District Council,20/09/2012,110977,720,Fgi Ltd,CR417042,Information Manager,Training - Other,136
http://statistics.data.gov.uk/id/local-authority/12UE,Huntingdonshire District Council,06/09/2012,111390,88202.67,Zurich Municipal,CR477397,Insurance Premium Holding,Insurance Public Liability,160
http://statistics.data.gov.uk/id/local-authority/12UE,Huntingdonshire District Council,06/09/2012,111388,3420.8,Jlt Speciality Ltd,CR480345,Insurance Premium Holding,Insurance Personal Accident,161
http://statistics.data.gov.uk/id/local-authority/12UE,Huntingdonshire District Council,06/09/2012,111390,27447.16,Zurich Municipal,CR477397,Insurance Premium Holding,Insurance Employers,162
http://statistics.data.gov.uk/id/local-authority/12UE,Huntingdonshire District Council,06/09/2012,111387,4240,Jlt Speciality Ltd,CR480345,Insurance Premium Holding,Insurance Fidelity Guarantee,166
http://statistics.data.gov.uk/id/local-authority/12UE,Huntingdonshire District Council,06/09/2012,111390,1431,Zurich Municipal,CR477397,Insurance Premium Holding,Insurance Libel,167
http://statistics.data.gov.uk/id/local-authority/12UE,Huntingdonshire District Council,06/09/2012,111390,7443.32,Zurich Municipal,CR477397,Insurance Premium Holding,Insurance Officials Indemnity,168
http://statistics.data.gov.uk/id/local-authority/12UE,Huntingdonshire District Council,06/09/2012,111390,341.18,Zurich Municipal,CR477397,Insurance Premium Holding,Ins (Service Related),260
http://statistics.data.gov.uk/id/local-authority/12UE,Huntingdonshire District Council,06/09/2012,111385,14685.79,Zurich Municipal,CR477397,Insurance Premium Holding,Ins (Service Related),260
http://statistics.data.gov.uk/id/local-authority/12UE,Huntingdonshire District Council,06/09/2012,111390,65851.02,Zurich Municipal,CR477397,Insurance Premium Holding,Building Insurance,414
http://statistics.data.gov.uk/id/local-authority/12UE,Huntingdonshire District Council,06/09/2012,111390,6264.76,Zurich Municipal,CR477397,Insurance Premium Holding,Equipment Ins/All Risks,510
http://statistics.data.gov.uk/id/local-authority/12UE,Huntingdonshire District Council,06/09/2012,111389,67575,Jlt Speciality Ltd,CR480345,Insurance Premium Holding,Vehicle Insurance,610
http://statistics.data.gov.uk/id/local-authority/12UE,Huntingdonshire District Council,06/09/2012,111390,5918.33,Zurich Municipal,CR477397,Land Charges,Ins (Service Related),260
http://statistics.data.gov.uk/id/local-authority/12UE,Huntingdonshire District Council,20/09/2012,112286,21900,Mjh Leisure Ltd,CR455242,Leisure Centres Capital,Building Construction,300
http://statistics.data.gov.uk/id/local-authority/12UE,Huntingdonshire District Council,13/09/2012,111537,1760,D C Maintenance,CR455232,Leisure Centres Capital,Gen Building Mtce - Planned,304
http://statistics.data.gov.uk/id/local-authority/12UE,Huntingdonshire District Council,13/09/2012,111847,10397.6,Milk Leisure Ltd,CR455268,Leisure Centres Capital,Gen Building Mtce - Planned,304
http://statistics.data.gov.uk/id/local-authority/12UE,Huntingdonshire District Council,13/09/2012,111379,323616.13,R G Carter Peterborough,CR401511,Leisure Centres Capital,Gen Building Mtce - Planned,304
http://statistics.data.gov.uk/id/local-authority/12UE,Huntingdonshire District Council,06/09/2012,111378,41068.7,R G Carter Peterborough,CR401511,Leisure Centres Capital,Gen Building Mtce - Planned,304
http://statistics.data.gov.uk/id/local-authority/12UE,Huntingdonshire District Council,27/09/2012,111766,3596.4,Rotowash Uk Ltd,CR400863,Leisure Centres Capital,Equipment Purchases,500
http://statistics.data.gov.uk/id/local-authority/12UE,Huntingdonshire District Council,06/09/2012,111375,2400,Jba Construction & Management Services,CR416716,Leisure Centres Capital,Consultants,711
http://statistics.data.gov.uk/id/local-authority/12UE,Huntingdonshire District Council,13/09/2012,111084,987,Borney (Uk) Ltd,CR144249,Leisure Centres Overall,Advertising/Promoting Services,255
http://statistics.data.gov.uk/id/local-authority/12UE,Huntingdonshire District Council,27/09/2012,112801,600,Global Radio Services Ltd,CR480114,Leisure Centres Overall,Advertising/Promoting Services,255
http://statistics.data.gov.uk/id/local-authority/12UE,Huntingdonshire District Council,06/09/2012,109896,840,Primesight  Ltd,CR132710,Leisure Centres Overall,Advertising/Promoting Services,255
http://statistics.data.gov.uk/id/local-authority/12UE,Huntingdonshire District Council,06/09/2012,538296,52,Huntingdon Methodist Church,CR415461,Leisure Development,Hire Of Rooms,411
http://statistics.data.gov.uk/id/local-authority/12UE,Huntingdonshire District Council,13/09/2012,110674,560,Grafham Water Centre,CR416894,Leisure Development,Instructors/Tutors,720
http://statistics.data.gov.uk/id/local-authority/12UE,Huntingdonshire District Council,27/09/2012,111559,1863.6,T C Harrison Ford,CR405072,Licences,Vehicle Inspection,618
http://statistics.data.gov.uk/id/local-authority/12UE,Huntingdonshire District Council,06/09/2012,538988,99,Priory Centre,CR001787,Local Development Framework,Hire Of Rooms,411
http://statistics.data.gov.uk/id/local-authority/12UE,Huntingdonshire District Council,27/09/2012,112884,3690,Alison Farmer Associates,CR411072,Local Development Framework,Consultants,711
http://statistics.data.gov.uk/id/local-authority/12UE,Huntingdonshire District Council,06/09/2012,111561,2160,Liz Lake Associates,CR410970,Local Development Framework,Consultants,711
http://statistics.data.gov.uk/id/local-authority/12UE,Huntingdonshire District Council,20/09/2012,111566,3195,The Landscape Partnership,CR455142,Local Development Framework,Consultants,711
http://statistics.data.gov.uk/id/local-authority/12UE,Huntingdonshire District Council,06/09/2012,111389,424,Jlt Speciality Ltd,CR480345,Managing Director (Cpp),Vehicle Operating Lease,601
http://statistics.data.gov.uk/id/local-authority/12UE,Huntingdonshire District Council,06/09/2012,539092,133.3,Godmanchester Picture Framing,CR482343,Member Allowances & Support,Other Office Expenses,295
http://statistics.data.gov.uk/id/local-authority/12UE,Huntingdonshire District Council,06/09/2012,539093,89.69,Godmanchester Picture Framing,CR482343,Member Allowances & Support,Other Office Expenses,295
http://statistics.data.gov.uk/id/local-authority/12UE,Huntingdonshire District Council,27/09/2012,538972,100,Cambridgeshire County Council,CR415332,Member Allowances & Support,Grants (Paid Out),800
http://statistics.data.gov.uk/id/local-authority/12UE,Huntingdonshire District Council,27/09/2012,112357,1.69,Arthur Ibbett Ltd,CR000430,Misc Countryside Sites,Equipment Purchases,500
http://statistics.data.gov.uk/id/local-authority/12UE,Huntingdonshire District Council,27/09/2012,112357,25.33,Arthur Ibbett Ltd,CR000430,Misc Countryside Sites,Materials,550
http://statistics.data.gov.uk/id/local-authority/12UE,Huntingdonshire District Council,27/09/2012,111308,850.2,Portakabin Ltd,CR478566,Miscellaneous Grants,Hire Of Rooms,411
http://statistics.data.gov.uk/id/local-authority/12UE,Huntingdonshire District Council,27/09/2012,111488,5046,Disability Information Service Huntingdonshir,CR408884,Miscellaneous Grants,Grants (Paid Out),800
http://statistics.data.gov.uk/id/local-authority/12UE,Huntingdonshire District Council,27/09/2012,111585,-810,Northgate Information Solutions Uk Ltd,CR415749,N N D R Administration,Software,206
http://statistics.data.gov.uk/id/local-authority/12UE,Huntingdonshire District Council,13/09/2012,110599,576,Dal-Rod Uk Ltd,CR002782,Nightsoil Collection,Subcontractors,777
http://statistics.data.gov.uk/id/local-authority/12UE,Huntingdonshire District Council,13/09/2012,112021,16412.76,Sat Sun & Alternative Technology Ltd,CR453889,Offices Capital,Building Construction,300
http://statistics.data.gov.uk/id/local-authority/12UE,Huntingdonshire District Council,06/09/2012,109840,4336.8,Sat Sun & Alternative Technology Ltd,CR453889,Offices Capital,Gen Building Mtce - Responsive,303
http://statistics.data.gov.uk/id/local-authority/12UE,Huntingdonshire District Council,27/09/2012,112626,900,Barker Storey Matthews,CR400788,Offices Capital,Valuation,759
http://statistics.data.gov.uk/id/local-authority/12UE,Huntingdonshire District Council,13/09/2012,111466,729.6,Cimspa,CR482668,One Leisure Huntingdon,Training - Operational,131
http://statistics.data.gov.uk/id/local-authority/12UE,Huntingdonshire District Council,06/09/2012,109310,639.6,Corporate Leisure Ltd,CR004089,One Leisure Huntingdon,Protective Clothing & Uniforms,163
http://statistics.data.gov.uk/id/local-authority/12UE,Huntingdonshire District Council,06/09/2012,110899,341.88,Corporate Trends,CR415966,One Leisure Huntingdon,Protective Clothing & Uniforms,163
http://statistics.data.gov.uk/id/local-authority/12UE,Huntingdonshire District Council,27/09/2012,112052,298.5,Gladstone Mrm,CR405717,One Leisure Huntingdon,Software,206
http://statistics.data.gov.uk/id/local-authority/12UE,Huntingdonshire District Council,13/09/2012,111097,169.18,T N T Post London Ltd,CR479965,One Leisure Huntingdon,Postage,231
http://statistics.data.gov.uk/id/local-authority/12UE,Huntingdonshire District Council,27/09/2012,112617,4253.36,E-On Energy,CR416430,One Leisure Huntingdon,Electricity,420
http://statistics.data.gov.uk/id/local-authority/12UE,Huntingdonshire District Council,27/09/2012,112432,976.5,Swalec,CR407130,One Leisure Huntingdon,Electricity,420
http://statistics.data.gov.uk/id/local-authority/12UE,Huntingdonshire District Council,20/09/2012,111834,2435.71,E-On Energy,CR416430,One Leisure Huntingdon,Gas,421
http://statistics.data.gov.uk/id/local-authority/12UE,Huntingdonshire District Council,20/09/2012,111830,524.98,E-On Energy,CR416430,One Leisure Huntingdon,Gas,421
http://statistics.data.gov.uk/id/local-authority/12UE,Huntingdonshire District Council,06/09/2012,111510,576.42,Heineken Uk Ltd,CR032678,One Leisure Huntingdon,Bar Provisions,558
http://statistics.data.gov.uk/id/local-authority/12UE,Huntingdonshire District Council,06/09/2012,111504,557.98,Booker Cash And Carry,CR027611,One Leisure Huntingdon,Vending Materials,560
http://statistics.data.gov.uk/id/local-authority/12UE,Huntingdonshire District Council,20/09/2012,111503,1157.29,Glaxosmithkline,CR010424,One Leisure Huntingdon,Vending Materials,560
http://statistics.data.gov.uk/id/local-authority/12UE,Huntingdonshire District Council,13/09/2012,111464,551.95,Swimrite Suppliers Ltd (Srs Leisure),CR478711,One Leisure Huntingdon,Materials For Resale,570
http://statistics.data.gov.uk/id/local-authority/12UE,Huntingdonshire District Council,13/09/2012,111435,1387.5,Ecocleen Services Limited,CR406985,One Leisure Huntingdon,Subcontractors,777
http://statistics.data.gov.uk/id/local-authority/12UE,Huntingdonshire District Council,06/09/2012,109310,288.3,Corporate Leisure Ltd,CR004089,One Leisure Ramsey,Protective Clothing & Uniforms,163
http://statistics.data.gov.uk/id/local-authority/12UE,Huntingdonshire District Council,27/09/2012,112052,149.26,Gladstone Mrm,CR405717,One Leisure Ramsey,Software,206
http://statistics.data.gov.uk/id/local-authority/12UE,Huntingdonshire District Council,13/09/2012,110380,521,Clanpress King'S Lynn Ltd,CR413516,One Leisure Ramsey,Printing (External),220
http://statistics.data.gov.uk/id/local-authority/12UE,Huntingdonshire District Council,13/09/2012,111097,169.18,T N T Post London Ltd,CR479965,One Leisure Ramsey,Postage,231
http://statistics.data.gov.uk/id/local-authority/12UE,Huntingdonshire District Council,13/09/2012,111768,821.81,Ecocleen Services Limited,CR406985,One Leisure Ramsey,Gen Building Mtce - Planned,304
http://statistics.data.gov.uk/id/local-authority/12UE,Huntingdonshire District Council,27/09/2012,112436,1987.14,Swalec,CR407130,One Leisure Ramsey,Electricity,420
http://statistics.data.gov.uk/id/local-authority/12UE,Huntingdonshire District Council,20/09/2012,111825,705.5,E-On Energy,CR416430,One Leisure Ramsey,Gas,421
http://statistics.data.gov.uk/id/local-authority/12UE,Huntingdonshire District Council,13/09/2012,111348,2936.88,Menerga Technical Services Ltd,CR033494,One Leisure Ramsey,Equipment Maintenance,511
http://statistics.data.gov.uk/id/local-authority/12UE,Huntingdonshire District Council,06/09/2012,110136,589,Iql Uk Ltd,CR415623,One Leisure Ramsey,Materials,550
http://statistics.data.gov.uk/id/local-authority/12UE,Huntingdonshire District Council,13/09/2012,109442,1027.2,Optimus Consult Ltd,CR455181,One Leisure Ramsey,Consultants,711
http://statistics.data.gov.uk/id/local-authority/12UE,Huntingdonshire District Council,06/09/2012,109310,18.6,Corporate Leisure Ltd,CR004089,One Leisure Sawtry,Protective Clothing & Uniforms,163
http://statistics.data.gov.uk/id/local-authority/12UE,Huntingdonshire District Council,27/09/2012,112052,149.24,Gladstone Mrm,CR405717,One Leisure Sawtry,Software,206
http://statistics.data.gov.uk/id/local-authority/12UE,Huntingdonshire District Council,13/09/2012,111097,169.18,T N T Post London Ltd,CR479965,One Leisure Sawtry,Postage,231
http://statistics.data.gov.uk/id/local-authority/12UE,Huntingdonshire District Council,20/09/2012,112293,587.66,Kershaw Mechanical Services Ltd,CR480268,One Leisure Sawtry,Gen Building Mtce - Responsive,303
http://statistics.data.gov.uk/id/local-authority/12UE,Huntingdonshire District Council,13/09/2012,111533,1089.3,Ecocleen Services Limited,CR406985,One Leisure Sawtry,Gen Building Mtce - Planned,304
http://statistics.data.gov.uk/id/local-authority/12UE,Huntingdonshire District Council,13/09/2012,111321,833.98,Pool Solutions Ltd,CR412070,One Leisure Sawtry,Plant & Equipment Maintenance,380
http://statistics.data.gov.uk/id/local-authority/12UE,Huntingdonshire District Council,20/09/2012,111948,837.41,E-On Energy,CR416430,One Leisure Sawtry,Gas,421
http://statistics.data.gov.uk/id/local-authority/12UE,Huntingdonshire District Council,13/09/2012,112019,3721.45,Swalec,CR407130,One Leisure Sawtry,Gas,421
http://statistics.data.gov.uk/id/local-authority/12UE,Huntingdonshire District Council,27/09/2012,111772,3596.4,Rotowash Uk Ltd,CR400863,One Leisure Sawtry,Equipment Purchases,500
http://statistics.data.gov.uk/id/local-authority/12UE,Huntingdonshire District Council,20/09/2012,112261,666,Affinity Nationwide Support Services,CR482612,One Leisure St Ives,Hired Staff,100
http://statistics.data.gov.uk/id/local-authority/12UE,Huntingdonshire District Council,20/09/2012,112326,532.8,Affinity Nationwide Support Services,CR482612,One Leisure St Ives,Hired Staff,100
http://statistics.data.gov.uk/id/local-authority/12UE,Huntingdonshire District Council,06/09/2012,109310,676.8,Corporate Leisure Ltd,CR004089,One Leisure St Ives,Protective Clothing & Uniforms,163
http://statistics.data.gov.uk/id/local-authority/12UE,Huntingdonshire District Council,06/09/2012,110899,264.18,Corporate Trends,CR415966,One Leisure St Ives,Protective Clothing & Uniforms,163
http://statistics.data.gov.uk/id/local-authority/12UE,Huntingdonshire District Council,27/09/2012,112052,298.5,Gladstone Mrm,CR405717,One Leisure St Ives,Software,206
http://statistics.data.gov.uk/id/local-authority/12UE,Huntingdonshire District Council,13/09/2012,111028,1013,Purchase Power,CR033202,One Leisure St Ives,Postage,231
http://statistics.data.gov.uk/id/local-authority/12UE,Huntingdonshire District Council,13/09/2012,111097,169.18,T N T Post London Ltd,CR479965,One Leisure St Ives,Postage,231
http://statistics.data.gov.uk/id/local-authority/12UE,Huntingdonshire District Council,06/09/2012,111412,646.49,Fire And Safety Solutions Ltd,CR479928,One Leisure St Ives,Gen Building Mtce - Responsive,303
http://statistics.data.gov.uk/id/local-authority/12UE,Huntingdonshire District Council,06/09/2012,111396,1303.59,Roger Wilson Electronics,CR028041,One Leisure St Ives,Gen Building Mtce - Responsive,303
http://statistics.data.gov.uk/id/local-authority/12UE,Huntingdonshire District Council,06/09/2012,110907,840,Roof Safety Solutions,CR478995,One Leisure St Ives,Gen Building Mtce - Responsive,303
http://statistics.data.gov.uk/id/local-authority/12UE,Huntingdonshire District Council,13/09/2012,111850,598.62,Safe Secure Locker Services Ltd,CR478312,One Leisure St Ives,Gen Building Mtce - Planned,304
http://statistics.data.gov.uk/id/local-authority/12UE,Huntingdonshire District Council,06/09/2012,111069,1133.28,Fleet Line Markers Ltd,CR406897,One Leisure St Ives,Grounds Mtce Contractors,351
http://statistics.data.gov.uk/id/local-authority/12UE,Huntingdonshire District Council,27/09/2012,112615,8715.18,E-On Energy,CR416430,One Leisure St Ives,Electricity,420
http://statistics.data.gov.uk/id/local-authority/12UE,Huntingdonshire District Council,06/09/2012,110550,1729.85,E-On Energy,CR416430,One Leisure St Ives,Electricity,420
http://statistics.data.gov.uk/id/local-authority/12UE,Huntingdonshire District Council,27/09/2012,112611,1702.34,E-On Energy,CR416430,One Leisure St Ives,Electricity,420
http://statistics.data.gov.uk/id/local-authority/12UE,Huntingdonshire District Council,20/09/2012,111828,1882.37,E-On Energy,CR416430,One Leisure St Ives,Gas,421
http://statistics.data.gov.uk/id/local-authority/12UE,Huntingdonshire District Council,20/09/2012,112290,8735.17,Cambridge Water Plc,CR000172,One Leisure St Ives,Water,432
http://statistics.data.gov.uk/id/local-authority/12UE,Huntingdonshire District Council,13/09/2012,111382,1750.19,Ecocleen Services Limited,CR406985,One Leisure St Ives,Building Cleaning Internal,440
http://statistics.data.gov.uk/id/local-authority/12UE,Huntingdonshire District Council,27/09/2012,112259,20.99,Booker Cash And Carry,CR027611,One Leisure St Ives,Cleaning Materials,443
http://statistics.data.gov.uk/id/local-authority/12UE,Huntingdonshire District Council,27/09/2012,111029,891.48,Abel Alarm Company Ltd,CR000201,One Leisure St Ives,Security,450
http://statistics.data.gov.uk/id/local-authority/12UE,Huntingdonshire District Council,27/09/2012,112259,92.26,Booker Cash And Carry,CR027611,One Leisure St Ives,Materials,550
http://statistics.data.gov.uk/id/local-authority/12UE,Huntingdonshire District Council,06/09/2012,110929,47.98,Booker Cash And Carry,CR027611,One Leisure St Ives,Materials,550
http://statistics.data.gov.uk/id/local-authority/12UE,Huntingdonshire District Council,13/09/2012,111071,836.74,Brenntag Uk Ltd,CR015017,One Leisure St Ives,Chemicals,551
http://statistics.data.gov.uk/id/local-authority/12UE,Huntingdonshire District Council,27/09/2012,112259,1432.99,Booker Cash And Carry,CR027611,One Leisure St Ives,Bar Provisions,558
http://statistics.data.gov.uk/id/local-authority/12UE,Huntingdonshire District Council,06/09/2012,110929,348.72,Booker Cash And Carry,CR027611,One Leisure St Ives,Bar Provisions,558
http://statistics.data.gov.uk/id/local-authority/12UE,Huntingdonshire District Council,20/09/2012,112284,1432.16,Heineken Uk Ltd,CR032678,One Leisure St Ives,Bar Provisions,558
http://statistics.data.gov.uk/id/local-authority/12UE,Huntingdonshire District Council,20/09/2012,112256,1145.89,Heineken Uk Ltd,CR032678,One Leisure St Ives,Bar Provisions,558
http://statistics.data.gov.uk/id/local-authority/12UE,Huntingdonshire District Council,27/09/2012,112815,862.46,Heineken Uk Ltd,CR032678,One Leisure St Ives,Bar Provisions,558
http://statistics.data.gov.uk/id/local-authority/12UE,Huntingdonshire District Council,20/09/2012,112255,776.53,Heineken Uk Ltd,CR032678,One Leisure St Ives,Bar Provisions,558
http://statistics.data.gov.uk/id/local-authority/12UE,Huntingdonshire District Council,27/09/2012,112259,193.97,Booker Cash And Carry,CR027611,One Leisure St Ives,Catering Materials,559
http://statistics.data.gov.uk/id/local-authority/12UE,Huntingdonshire District Council,06/09/2012,110929,50.51,Booker Cash And Carry,CR027611,One Leisure St Ives,Catering Materials,559
http://statistics.data.gov.uk/id/local-authority/12UE,Huntingdonshire District Council,06/09/2012,110929,200.62,Booker Cash And Carry,CR027611,One Leisure St Ives,Vending Materials,560
http://statistics.data.gov.uk/id/local-authority/12UE,Huntingdonshire District Council,06/09/2012,111061,883.56,Booker Cash And Carry,CR027611,One Leisure St Ives,Vending Materials,560
http://statistics.data.gov.uk/id/local-authority/12UE,Huntingdonshire District Council,06/09/2012,111025,682.01,Glaxosmithkline,CR010424,One Leisure St Ives,Vending Materials,560
http://statistics.data.gov.uk/id/local-authority/12UE,Huntingdonshire District Council,27/09/2012,112259,79.94,Booker Cash And Carry,CR027611,One Leisure St Ives,Confectionery,572
http://statistics.data.gov.uk/id/local-authority/12UE,Huntingdonshire District Council,06/09/2012,110929,293.41,Booker Cash And Carry,CR027611,One Leisure St Ives,Confectionery,572
http://statistics.data.gov.uk/id/local-authority/12UE,Huntingdonshire District Council,06/09/2012,110934,1413.72,Pace Petroleum Ltd,CR001917,One Leisure St Ives,Diesel,615
http://statistics.data.gov.uk/id/local-authority/12UE,Huntingdonshire District Council,06/09/2012,539066,220,Security Industry Authority,CR411367,One Leisure St Ives,Licences,730
http://statistics.data.gov.uk/id/local-authority/12UE,Huntingdonshire District Council,27/09/2012,112791,517.2,Sky Business,CR033259,One Leisure St Ives,Entertainments Inc Cable Tv,744
http://statistics.data.gov.uk/id/local-authority/12UE,Huntingdonshire District Council,20/09/2012,112328,1191.56,Starlite Roadshow,CR024127,One Leisure St Ives,Entertainments Inc Cable Tv,744
http://statistics.data.gov.uk/id/local-authority/12UE,Huntingdonshire District Council,06/09/2012,109310,465,Corporate Leisure Ltd,CR004089,One Leisure St Neots,Protective Clothing & Uniforms,163
http://statistics.data.gov.uk/id/local-authority/12UE,Huntingdonshire District Council,06/09/2012,110899,450.66,Corporate Trends,CR415966,One Leisure St Neots,Protective Clothing & Uniforms,163
http://statistics.data.gov.uk/id/local-authority/12UE,Huntingdonshire District Council,27/09/2012,112052,298.5,Gladstone Mrm,CR405717,One Leisure St Neots,Software,206
http://statistics.data.gov.uk/id/local-authority/12UE,Huntingdonshire District Council,13/09/2012,111035,558.66,Konica Minolta Business Solutions East Ltd,CR478866,One Leisure St Neots,Other Office Equipment,209
http://statistics.data.gov.uk/id/local-authority/12UE,Huntingdonshire District Council,13/09/2012,111097,169.18,T N T Post London Ltd,CR479965,One Leisure St Neots,Postage,231
http://statistics.data.gov.uk/id/local-authority/12UE,Huntingdonshire District Council,06/09/2012,111495,18,Technogym Uk Ltd,CR033037,One Leisure St Neots,Postage,231
http://statistics.data.gov.uk/id/local-authority/12UE,Huntingdonshire District Council,27/09/2012,112801,930,Global Radio Services Ltd,CR480114,One Leisure St Neots,Advertising/Promoting Services,255
http://statistics.data.gov.uk/id/local-authority/12UE,Huntingdonshire District Council,13/09/2012,111034,767.6,Chubb Fire Ltd,CR478924,One Leisure St Neots,Gen Building Mtce - Responsive,303
http://statistics.data.gov.uk/id/local-authority/12UE,Huntingdonshire District Council,06/09/2012,111033,671.88,Jsa Leisure Ltd,CR40187,One Leisure St Neots,Gen Building Mtce - Responsive,303
http://statistics.data.gov.uk/id/local-authority/12UE,Huntingdonshire District Council,13/09/2012,111049,2716.8,R S Air Conditioning Ltd,CR478470,One Leisure St Neots,Gen Building Mtce - Responsive,303
http://statistics.data.gov.uk/id/local-authority/12UE,Huntingdonshire District Council,20/09/2012,111037,916.8,St Neots Fencing Company,CR478488,One Leisure St Neots,Gen Building Mtce - Responsive,303
http://statistics.data.gov.uk/id/local-authority/12UE,Huntingdonshire District Council,27/09/2012,112787,20027.09,E-On Energy,CR416430,One Leisure St Neots,Electricity,420
http://statistics.data.gov.uk/id/local-authority/12UE,Huntingdonshire District Council,27/09/2012,112614,9037.49,E-On Energy,CR416430,One Leisure St Neots,Electricity,420
http://statistics.data.gov.uk/id/local-authority/12UE,Huntingdonshire District Council,27/09/2012,112786,-17081.98,E-On Energy,CR416430,One Leisure St Neots,Electricity,420
http://statistics.data.gov.uk/id/local-authority/12UE,Huntingdonshire District Council,20/09/2012,111833,1579.58,E-On Energy,CR416430,One Leisure St Neots,Gas,421
http://statistics.data.gov.uk/id/local-authority/12UE,Huntingdonshire District Council,20/09/2012,112251,1138.28,Anglian Water,CR000071,One Leisure St Neots,Water,432
http://statistics.data.gov.uk/id/local-authority/12UE,Huntingdonshire District Council,13/09/2012,111863,1111.02,Anglian Water,CR000071,One Leisure St Neots,Water,432
http://statistics.data.gov.uk/id/local-authority/12UE,Huntingdonshire District Council,27/09/2012,112632,892.98,Anglian Water,CR000071,One Leisure St Neots,Water,432
http://statistics.data.gov.uk/id/local-authority/12UE,Huntingdonshire District Council,20/09/2012,112251,1228.74,Anglian Water,CR000071,One Leisure St Neots,Sewerage,433
http://statistics.data.gov.uk/id/local-authority/12UE,Huntingdonshire District Council,06/09/2012,111023,792.24,Ecocleen Services Limited,CR406985,One Leisure St Neots,Building Cleaning Internal,440
http://statistics.data.gov.uk/id/local-authority/12UE,Huntingdonshire District Council,06/09/2012,111024,792.24,Ecocleen Services Limited,CR406985,One Leisure St Neots,Building Cleaning Internal,440
http://statistics.data.gov.uk/id/local-authority/12UE,Huntingdonshire District Council,13/09/2012,111031,546.13,Ecocleen Services Limited,CR406985,One Leisure St Neots,Building Cleaning Internal,440
http://statistics.data.gov.uk/id/local-authority/12UE,Huntingdonshire District Council,06/09/2012,111449,655.2,G4s Secure Solutions (Uk) Ltd,CR454030,One Leisure St Neots,Security,450
http://statistics.data.gov.uk/id/local-authority/12UE,Huntingdonshire District Council,06/09/2012,111495,4110,Technogym Uk Ltd,CR033037,One Leisure St Neots,Equipment Purchases,500
http://statistics.data.gov.uk/id/local-authority/12UE,Huntingdonshire District Council,27/09/2012,111422,584.8,Glaxosmithkline,CR010424,One Leisure St Neots,Vending Materials,560
http://statistics.data.gov.uk/id/local-authority/12UE,Huntingdonshire District Council,27/09/2012,111994,1109.62,Swimrite Suppliers Ltd (Srs Leisure),CR478711,One Leisure St Neots,Materials For Resale,570
http://statistics.data.gov.uk/id/local-authority/12UE,Huntingdonshire District Council,06/09/2012,110331,1041.49,Swimrite Suppliers Ltd (Srs Leisure),CR478711,One Leisure St Neots,Materials For Resale,570
http://statistics.data.gov.uk/id/local-authority/12UE,Huntingdonshire District Council,13/09/2012,111779,5200.8,Freight Transport Association,CR003104,Operations Mgt Units,Training - Operational,131
http://statistics.data.gov.uk/id/local-authority/12UE,Huntingdonshire District Council,27/09/2012,111876,370.31,T N T Post London Ltd,CR479965,Operations Mgt Units,Postage,231
http://statistics.data.gov.uk/id/local-authority/12UE,Huntingdonshire District Council,06/09/2012,111389,424,Jlt Speciality Ltd,CR480345,Operations Mgt Units,Vehicle Operating Lease,601
http://statistics.data.gov.uk/id/local-authority/12UE,Huntingdonshire District Council,27/09/2012,112600,720,G Ferrara Ltd,CR478949,Parks & Open Spaces,Gen Building Mtce - Responsive,303
http://statistics.data.gov.uk/id/local-authority/12UE,Huntingdonshire District Council,27/09/2012,111787,939,Soft Surfaces,CR415861,Parks & Open Spaces,Materials,550
http://statistics.data.gov.uk/id/local-authority/12UE,Huntingdonshire District Council,20/09/2012,111790,5984.96,R J Warren Ltd,CR453872,Parks Equipment Capital,Playground Equipment,360
http://statistics.data.gov.uk/id/local-authority/12UE,Huntingdonshire District Council,13/09/2012,111875,5058,Wicksteed Leisure Ltd,CR028997,Parks Equipment Capital,Playground Equipment,360
http://statistics.data.gov.uk/id/local-authority/12UE,Huntingdonshire District Council,27/09/2012,112597,1228.5,Burgin Ltd,CR482438,Pathfinder House Site,Gen Building Mtce - Responsive,303
http://statistics.data.gov.uk/id/local-authority/12UE,Huntingdonshire District Council,27/09/2012,111303,604.8,Playfords Ltd,CR479055,Pathfinder House Site,Gen Building Mtce - Responsive,303
http://statistics.data.gov.uk/id/local-authority/12UE,Huntingdonshire District Council,27/09/2012,112595,925.2,Burgin Ltd,CR482438,Pathfinder House Site,Plant & Equipment Maintenance,380
http://statistics.data.gov.uk/id/local-authority/12UE,Huntingdonshire District Council,27/09/2012,112596,568,Burgin Ltd,CR482438,Pathfinder House Site,Plant & Equipment Maintenance,380
http://statistics.data.gov.uk/id/local-authority/12UE,Huntingdonshire District Council,13/09/2012,110707,701.46,Kone Lifts Ltd,CR000483,Pathfinder House Site,Plant & Equipment Maintenance,380
http://statistics.data.gov.uk/id/local-authority/12UE,Huntingdonshire District Council,27/09/2012,111301,5940,Playfords Ltd,CR479055,Pathfinder House Site,Plant & Equipment Maintenance,380
http://statistics.data.gov.uk/id/local-authority/12UE,Huntingdonshire District Council,27/09/2012,112613,10069.14,E-On Energy,CR416430,Pathfinder House Site,Electricity,420
http://statistics.data.gov.uk/id/local-authority/12UE,Huntingdonshire District Council,20/09/2012,111836,527.92,E-On Energy,CR416430,Pathfinder House Site,Gas,421
http://statistics.data.gov.uk/id/local-authority/12UE,Huntingdonshire District Council,13/09/2012,111352,2146.93,Ecocleen Services Limited,CR406985,Pathfinder House Site,Building Cleaning Internal,440
http://statistics.data.gov.uk/id/local-authority/12UE,Huntingdonshire District Council,13/09/2012,111728,933.2,Maskearaid Ind Supplies,CR033423,Pathfinder House Site,Cleaning Materials,443
http://statistics.data.gov.uk/id/local-authority/12UE,Huntingdonshire District Council,06/09/2012,110096,600,Glasdon Uk Ltd,CR002827,Pathfinder House Site,Refuse Sacks,552
http://statistics.data.gov.uk/id/local-authority/12UE,Huntingdonshire District Council,27/09/2012,112377,655.2,Flora Tec Ltd,CR028191,Pathfinder House Site,Plants And Seeds,556
http://statistics.data.gov.uk/id/local-authority/12UE,Huntingdonshire District Council,27/09/2012,112357,55,Arthur Ibbett Ltd,CR000430,Paxton Pits,Protective Clothing & Uniforms,163
http://statistics.data.gov.uk/id/local-authority/12UE,Huntingdonshire District Council,27/09/2012,112357,264.32,Arthur Ibbett Ltd,CR000430,Paxton Pits,Equipment Purchases,500
http://statistics.data.gov.uk/id/local-authority/12UE,Huntingdonshire District Council,27/09/2012,112357,267.03,Arthur Ibbett Ltd,CR000430,Paxton Pits,Materials,550
http://statistics.data.gov.uk/id/local-authority/12UE,Huntingdonshire District Council,27/09/2012,111801,782.67,S S Motors (Fuels)  Ltd,CR400864,Paxton Pits,Diesel,615
http://statistics.data.gov.uk/id/local-authority/12UE,Huntingdonshire District Council,27/09/2012,539531,131.23,Grays Of Thrapston,CR479672,Paxton Pits,Vehicle Maintenance,619
http://statistics.data.gov.uk/id/local-authority/12UE,Huntingdonshire District Council,20/09/2012,111093,727.2,Essex Environmental Supplies Limited,CR40195,Pest Control,Health & Safety,718
http://statistics.data.gov.uk/id/local-authority/12UE,Huntingdonshire District Council,13/09/2012,111888,5656.64,Automotive Leasing,CR406882,Planning M U'S,Vehicle Operating Lease,601
http://statistics.data.gov.uk/id/local-authority/12UE,Huntingdonshire District Council,06/09/2012,111389,424,Jlt Speciality Ltd,CR480345,Planning M U'S,Vehicle Operating Lease,601
http://statistics.data.gov.uk/id/local-authority/12UE,Huntingdonshire District Council,20/09/2012,111741,576,Jba Construction & Management Services,CR416716,Project Contributions,Consultants,711
http://statistics.data.gov.uk/id/local-authority/12UE,Huntingdonshire District Council,06/09/2012,111386,24377.84,Zurich Municipal,CR477397,Property Development And Mgt,Ins (Service Related),260
http://statistics.data.gov.uk/id/local-authority/12UE,Huntingdonshire District Council,06/09/2012,539099,38.53,British Gas Business,CR416363,Property Development And Mgt,Electricity,420
http://statistics.data.gov.uk/id/local-authority/12UE,Huntingdonshire District Council,06/09/2012,539100,8.96,Swalec,CR407130,Property Development And Mgt,Electricity,420
http://statistics.data.gov.uk/id/local-authority/12UE,Huntingdonshire District Council,06/09/2012,110088,1302,G Ferrara Ltd,CR478949,Public Conveniences,Gen Building Mtce - Responsive,303
http://statistics.data.gov.uk/id/local-authority/12UE,Huntingdonshire District Council,13/09/2012,111353,1027,Ecocleen Services Limited,CR406985,Public Conveniences,Gen Building Mtce - Planned,304
http://statistics.data.gov.uk/id/local-authority/12UE,Huntingdonshire District Council,13/09/2012,111354,658.1,Ecocleen Services Limited,CR406985,Public Conveniences,Gen Building Mtce - Planned,304
http://statistics.data.gov.uk/id/local-authority/12UE,Huntingdonshire District Council,27/09/2012,111349,1200,Nemco Utilities Ltd,CR409319,Public Conveniences,Gen Building Mtce - Planned,304
http://statistics.data.gov.uk/id/local-authority/12UE,Huntingdonshire District Council,20/09/2012,111798,2959.09,Staffline Group,CR416827,Recycling,Hired Staff,100
http://statistics.data.gov.uk/id/local-authority/12UE,Huntingdonshire District Council,27/09/2012,111978,2534.47,Staffline Group,CR416827,Recycling,Hired Staff,100
http://statistics.data.gov.uk/id/local-authority/12UE,Huntingdonshire District Council,06/09/2012,110683,981.29,Staffline Group,CR416827,Recycling,Hired Staff,100
http://statistics.data.gov.uk/id/local-authority/12UE,Huntingdonshire District Council,13/09/2012,111781,845.72,Staffline Group,CR416827,Recycling,Hired Staff,100
http://statistics.data.gov.uk/id/local-authority/12UE,Huntingdonshire District Council,27/09/2012,111949,4405.44,Gelpack Excelsior Limited,CR002966,Recycling,Refuse Sacks,552
http://statistics.data.gov.uk/id/local-authority/12UE,Huntingdonshire District Council,06/09/2012,110681,900.84,Wfl Enterprises Ltd,CR455202,Recycling,Vehicle Maintenance,619
http://statistics.data.gov.uk/id/local-authority/12UE,Huntingdonshire District Council,06/09/2012,110682,640.84,Wfl Enterprises Ltd,CR455202,Recycling,Vehicle Maintenance,619
http://statistics.data.gov.uk/id/local-authority/12UE,Huntingdonshire District Council,20/09/2012,111895,529.2,Wfl Enterprises Ltd,CR455202,Recycling,Vehicle Maintenance,619
http://statistics.data.gov.uk/id/local-authority/12UE,Huntingdonshire District Council,06/09/2012,110348,524.54,Cummins Uk,CR480395,Recycling,Vehicle Parts & Fittings,625
http://statistics.data.gov.uk/id/local-authority/12UE,Huntingdonshire District Council,06/09/2012,110602,-579.53,Cummins Uk,CR480395,Recycling,Vehicle Parts & Fittings,625
http://statistics.data.gov.uk/id/local-authority/12UE,Huntingdonshire District Council,27/09/2012,112414,1043.37,Bandvulc Tyres Ltd,CR406810,Recycling,Tyres,630
http://statistics.data.gov.uk/id/local-authority/12UE,Huntingdonshire District Council,13/09/2012,111015,5901.64,Viridor Waste Management Ltd,CR482408,Recycling,Recycling Collections,747
http://statistics.data.gov.uk/id/local-authority/12UE,Huntingdonshire District Council,13/09/2012,111014,2273.16,Viridor Waste Management Ltd,CR482408,Recycling,Recycling Collections,747
http://statistics.data.gov.uk/id/local-authority/12UE,Huntingdonshire District Council,13/09/2012,110549,1367.12,Badenoch And Clark,CR410510,Revenue Services Mus,Hired Staff,100
http://statistics.data.gov.uk/id/local-authority/12UE,Huntingdonshire District Council,20/09/2012,112262,1335.7,Badenoch And Clark,CR410510,Revenue Services Mus,Hired Staff,100
http://statistics.data.gov.uk/id/local-authority/12UE,Huntingdonshire District Council,20/09/2012,112263,1194.26,Badenoch And Clark,CR410510,Revenue Services Mus,Hired Staff,100
http://statistics.data.gov.uk/id/local-authority/12UE,Huntingdonshire District Council,13/09/2012,110748,1178.56,Badenoch And Clark,CR410510,Revenue Services Mus,Hired Staff,100
http://statistics.data.gov.uk/id/local-authority/12UE,Huntingdonshire District Council,13/09/2012,110566,810,Northgate Information Solutions Uk Ltd,CR028925,Revenue Services Mus,Software,206
http://statistics.data.gov.uk/id/local-authority/12UE,Huntingdonshire District Council,13/09/2012,110987,1140,Northgate Information Solutions Uk Ltd,CR028925,Revenue Services Mus,Software,206
http://statistics.data.gov.uk/id/local-authority/12UE,Huntingdonshire District Council,06/09/2012,111485,525.36,Amalgamated Computer Supplies,CR480830,Revenue Services Mus,Stationery,225
http://statistics.data.gov.uk/id/local-authority/12UE,Huntingdonshire District Council,06/09/2012,110182,1635.13,Royal Mail,CR027083,Revenue Services Mus,Postage,231
http://statistics.data.gov.uk/id/local-authority/12UE,Huntingdonshire District Council,27/09/2012,111876,1428.44,T N T Post London Ltd,CR479965,Revenue Services Mus,Postage,231
http://statistics.data.gov.uk/id/local-authority/12UE,Huntingdonshire District Council,13/09/2012,111097,622.08,T N T Post London Ltd,CR479965,Revenue Services Mus,Postage,231
http://statistics.data.gov.uk/id/local-authority/12UE,Huntingdonshire District Council,06/09/2012,110721,908.46,T N T Post London Ltd,CR479965,Revenue Services Mus,Postage,231
http://statistics.data.gov.uk/id/local-authority/12UE,Huntingdonshire District Council,20/09/2012,111096,184.98,T N T Post London Ltd,CR479965,Revenue Services Mus,Postage,231
http://statistics.data.gov.uk/id/local-authority/12UE,Huntingdonshire District Council,06/09/2012,111389,424,Jlt Speciality Ltd,CR480345,Revenue Services Mus,Vehicle Operating Lease,601
http://statistics.data.gov.uk/id/local-authority/12UE,Huntingdonshire District Council,28/09/2012,540366,400,Hmcts,CR030090,Revenue Services Mus,Legal Fees,729
http://statistics.data.gov.uk/id/local-authority/12UE,Huntingdonshire District Council,17/09/2012,539735,100,Hmcts,CR030090,Revenue Services Mus,Legal Fees,729
http://statistics.data.gov.uk/id/local-authority/12UE,Huntingdonshire District Council,03/09/2012,538978,100,Hmcts,CR030090,Revenue Services Mus,Legal Fees,729
http://statistics.data.gov.uk/id/local-authority/12UE,Huntingdonshire District Council,27/09/2012,111299,728.84,Sarfo Solicitors,CR415973,Revenue Services Mus,Legal Fees,729
http://statistics.data.gov.uk/id/local-authority/12UE,Huntingdonshire District Council,27/09/2012,111750,1452.02,Dell Computer Corporation,CR408320,Software Capital,P C'S And Accessories,201
http://statistics.data.gov.uk/id/local-authority/12UE,Huntingdonshire District Council,13/09/2012,110980,565.44,Dell Computer Corporation,CR408320,Software Capital,P C'S And Accessories,201
http://statistics.data.gov.uk/id/local-authority/12UE,Huntingdonshire District Council,13/09/2012,110979,1130.88,Dell Computer Corporation,CR408320,Software Capital,Other I T Hardware,203
http://statistics.data.gov.uk/id/local-authority/12UE,Huntingdonshire District Council,13/09/2012,110567,19785.24,Bytes Software Services Ltd,CR455210,Software Capital,Software,206
http://statistics.data.gov.uk/id/local-authority/12UE,Huntingdonshire District Council,27/09/2012,112417,43200,Optevia Uk Ltd,CR455228,Software Capital,Software,206
http://statistics.data.gov.uk/id/local-authority/12UE,Huntingdonshire District Council,13/09/2012,112053,4800,Power Plate International Ltd,CR480728,Sports Equipment Capital,Equipment Purchases,500
http://statistics.data.gov.uk/id/local-authority/12UE,Huntingdonshire District Council,06/09/2012,110686,1050.5,Staffline Group,CR416827,Street Cleaning,Hired Staff,100
http://statistics.data.gov.uk/id/local-authority/12UE,Huntingdonshire District Council,13/09/2012,111784,944.04,Staffline Group,CR416827,Street Cleaning,Hired Staff,100
http://statistics.data.gov.uk/id/local-authority/12UE,Huntingdonshire District Council,20/09/2012,111797,624.62,Staffline Group,CR416827,Street Cleaning,Hired Staff,100
http://statistics.data.gov.uk/id/local-authority/12UE,Huntingdonshire District Council,06/09/2012,111574,8663.18,John Henry & Sons,CR031967,Street Cleaning,Sitework,359
http://statistics.data.gov.uk/id/local-authority/12UE,Huntingdonshire District Council,06/09/2012,110706,3240,Meteora Ltd,CR417248,Street Cleaning,Materials,550
http://statistics.data.gov.uk/id/local-authority/12UE,Huntingdonshire District Council,13/09/2012,111011,1987.5,Nomix Enviro,CR002353,Street Cleaning,Chemicals,551
http://statistics.data.gov.uk/id/local-authority/12UE,Huntingdonshire District Council,13/09/2012,111012,1453.5,Nomix Enviro,CR002353,Street Cleaning,Chemicals,551
http://statistics.data.gov.uk/id/local-authority/12UE,Huntingdonshire District Council,13/09/2012,111013,-1479.6,Nomix Enviro,CR002353,Street Cleaning,Chemicals,551
http://statistics.data.gov.uk/id/local-authority/12UE,Huntingdonshire District Council,27/09/2012,112307,22.38,Euramka Promotions Ltd,CR001864,Street Cleaning,Petrol,614
http://statistics.data.gov.uk/id/local-authority/12UE,Huntingdonshire District Council,27/09/2012,110711,693.86,M & N Vehicle Services,CR480661,Street Cleaning,Vehicle Maintenance,619
http://statistics.data.gov.uk/id/local-authority/12UE,Huntingdonshire District Council,27/09/2012,110711,98,M & N Vehicle Services,CR480661,Street Cleaning,Vehicle Mot,622
http://statistics.data.gov.uk/id/local-authority/12UE,Huntingdonshire District Council,27/09/2012,111938,408,Ians Tyre And Exhaust Centre,CR405836,Street Cleaning,Vehicle Parts & Fittings,625
http://statistics.data.gov.uk/id/local-authority/12UE,Huntingdonshire District Council,27/09/2012,111899,615.6,Johnston Engineering Ltd,CR029831,Street Cleaning,Vehicle Parts & Fittings,625
http://statistics.data.gov.uk/id/local-authority/12UE,Huntingdonshire District Council,20/09/2012,111901,547.06,Johnston Engineering Ltd,CR029831,Street Cleaning,Vehicle Parts & Fittings,625
http://statistics.data.gov.uk/id/local-authority/12UE,Huntingdonshire District Council,06/09/2012,110598,2730.2,Cambridgeshire County Council,CR006678,Trade Waste,Waste Disposal,763
http://statistics.data.gov.uk/id/local-authority/12UE,Huntingdonshire District Council,27/09/2012,112361,18562.82,Marshall Motor Group,CR009641,Vehicles & Plant Capital,Vehicles Purchased,600
http://statistics.data.gov.uk/id/local-authority/12UE,Huntingdonshire District Council,27/09/2012,112361,270,Marshall Motor Group,CR009641,Vehicles & Plant Capital,Vehicle Licence,609
http://statistics.data.gov.uk/id/local-authority/12UE,Huntingdonshire District Council,27/09/2012,111722,1564.8,Adc East Anglia Limited,CR410308,Watercourses,Sitework,359
